bitfinex-derivatives/quotes_BTCF0:USTF0_20210102
["timestamp","ask_amount","ask_price","bid_price","bid_amount"]
[1609625723432,0.32122902,31671.0,31670.0,5.63142525]
[1609625724833,0.30199,31671.0,31670.0,5.63142525]
[1609625725931,0.12489,31671.0,31670.0,5.63142525]
[1609625726333,0.019263,31673.0,31670.0,5.63142525]
[1609625726833,0.019263,31673.0,31671.0,0.00039362]
[1609625731940,0.01931699,31674.0,31671.0,0.00039362]
[1609625732141,0.01931699,31674.0,31673.0,4.0543]
[1609625732341,0.01931699,31674.0,31673.0,5.0543]
[1609625732545,0.01931699,31674.0,31673.0,5.05469355]
[1609625733754,0.01931699,31674.0,31673.0,5.09355686]
[1609625733949,0.01931699,31674.0,31673.0,1.03925686]
[1609625734148,0.01931699,31674.0,31673.0,1.00039355]
[1609625734550,0.01931699,31674.0,31673.0,0.00039355]
[1609625734950,0.01934478,31677.0,31672.0,0.03925758]
[1609625735250,0.01934478,31677.0,31676.0,0.18043158]
[1609625735851,0.01934478,31677.0,31676.0,0.18082506]
[1609625737152,0.59415367,31678.0,31676.0,0.18082506]
[1609625737451,0.59415367,31678.0,31677.0,5.2269]
[1609625737651,0.59415367,31678.0,31677.0,5.22729348]
[1609625738852,0.01936461,31678.0,31677.0,5.22729348]
[1609625739757,0.5948172,31678.0,31677.0,5.22729348]
[1609625740254,0.57545259,31678.0,31677.0,5.22729348]
[1609625742561,0.73194259,31678.0,31677.0,5.22729348]
[1609625742761,0.1758603,31678.0,31677.0,5.22729348]
[1609625743164,1.1758603,31678.0,31677.0,5.22729348]
[1609625743363,1.15649,31678.0,31677.0,5.22729348]
[1609625747367,1.17586348,31678.0,31677.0,5.22729348]
[1609625748069,1.7517346,31678.0,31677.0,5.22729348]
[1609625749768,1.17586348,31678.0,31677.0,5.22729348]
[1609625751975,1.75197614,31678.0,31677.0,5.22729348]
[1609625753177,0.75197614,31678.0,31677.0,5.22729348]
[1609625753879,0.73260266,31678.0,31677.0,5.22729348]
[1609625754978,0.73260266,31678.0,31677.0,6.22729348]
[1609625755178,0.73260266,31678.0,31677.0,5.22729348]
[1609625757180,0.73260266,31678.0,31677.0,6.22729348]
[1609625758182,0.73260266,31678.0,31677.0,5.22729348]
[1609625761185,0.73299128,31678.0,31677.0,6.22729348]
[1609625763791,0.73299128,31678.0,31677.0,5.22729348]
[1609625765095,0.73260266,31678.0,31677.0,5.26615502]
[1609625765294,0.73260266,31678.0,31677.0,6.26615502]
[1609625767398,0.71260266,31678.0,31677.0,6.26615502]
[1609625767701,0.69260266,31678.0,31677.0,6.26615502]
[1609625768098,1.85032896,31678.0,31677.0,6.26615502]
[1609625768899,1.38605117,31678.0,31677.0,6.26615502]
[1609625769800,1.37605117,31678.0,31677.0,6.26615502]
[1609625770402,1.35605117,31678.0,31677.0,6.26615502]
[1609625772102,1.82030887,31678.0,31677.0,6.26615502]
[1609625772805,0.66260266,31678.0,31677.0,6.26615502]
[1609625777712,0.66260266,31678.0,31677.0,5.26615502]
[1609625777911,0.66260266,31678.0,31677.0,6.26615502]
[1609625778511,1.35687297,31678.0,31677.0,6.26615502]
[1609625780014,0.66260266,31678.0,31677.0,6.26615502]
[1609625783216,0.66260266,31678.0,31677.0,7.26615502]
[1609625784217,0.66260266,31678.0,31677.0,2.03925502]
[1609625785222,0.66260266,31678.0,31677.0,1.03925502]
[1609625787219,0.66260266,31678.0,31677.0,2.03925502]
[1609625787621,0.11580819,31678.0,31677.0,2.03925502]
[1609625789224,0.11580819,31678.0,31677.0,1.03925502]
[1609625790824,0.10597117,31678.0,31677.0,4.62445502]
[1609625791326,0.10597117,31678.0,31677.0,5.62445502]
[1609625792228,0.08649,31678.0,31677.0,5.62445502]
[1609625792527,0.02932428,31679.0,31677.0,5.62445502]
[1609625792927,0.02932428,31679.0,31678.0,0.03925057]
[1609625793227,0.02932428,31679.0,31678.0,1.03925057]
[1609625793428,0.00983907,31679.0,31678.0,2.03925057]
[1609625795232,0.00983907,31679.0,31678.0,1.03925057]
[1609625797336,0.00983907,31679.0,31678.0,2.03925057]
[1609625797534,0.00983907,31679.0,31678.0,6.46645057]
[1609625798037,0.12491907,31679.0,31678.0,6.46645057]
[1609625798237,0.1444039,31679.0,31678.0,6.46645057]
[1609625798739,0.12491907,31679.0,31678.0,6.46645057]
[1609625799240,0.12491907,31679.0,31678.0,5.46645057]
[1609625803247,0.12491907,31679.0,31678.0,6.46645057]
[1609625803446,0.11508,31679.0,31678.0,6.46645057]
[1609625803646,0.0293201,31680.0,31678.0,6.46645057]
[1609625803947,0.0293201,31680.0,31679.0,0.0392466]
[1609625806149,0.00983388,31682.0,31679.0,0.0392466]
[1609625806549,0.00983388,31682.0,31679.0,1.0392466]
[1609625806750,0.00983227,31684.0,31679.0,1.0392466]
[1609625806948,0.00983227,31684.0,31680.0,0.03924182]
[1609625807350,0.57856188,31686.0,31680.0,0.03924182]
[1609625807351,0.02930397,31686.0,31680.0,0.03924182]
[1609625807550,0.02930397,31686.0,31685.0,0.18043158]
[1609625807752,0.02930397,31686.0,31685.0,1.68873158]
[1609625807951,0.02930397,31686.0,31685.0,1.72797326]
[1609625808654,0.00983225,31686.0,31685.0,1.72797326]
[1609625810353,0.00982799,31687.0,31685.0,1.68912617]
[1609625810754,0.00982799,31687.0,31686.0,0.00039457]
[1609625811255,0.00982799,31687.0,31686.0,1.00039457]
[1609625811455,0.00982426,31688.0,31686.0,2.00039457]
[1609625811856,0.00982426,31688.0,31687.0,0.00039457]
[1609625812057,0.02927839,31689.0,31687.0,0.00039457]
[1609625812958,0.00982249,31689.0,31687.0,0.00039457]
[1609625813159,0.00982249,31689.0,31688.0,4.5085]
[1609625813358,0.00982249,31689.0,31688.0,5.5085]
[1609625813863,0.00982249,31689.0,31688.0,1.03923348]
[1609625814061,0.69354477,31692.0,31688.0,1.03923348]
[1609625814062,0.02926157,31691.0,31688.0,1.03923348]
[1609625814269,0.02926157,31691.0,31688.0,1.00039451]
[1609625814458,0.02926157,31691.0,31689.0,0.00039451]
[1609625814658,0.02926157,31691.0,31689.0,1.00039451]
[1609625814859,0.02926157,31691.0,31690.0,4.3712]
[1609625815058,0.02926157,31691.0,31690.0,5.37159449]
[1609625815458,0.02926157,31691.0,31690.0,5.59086053]
[1609625816465,0.00980802,31702.0,31690.0,5.59086053]
[1609625816863,0.00980802,31702.0,31691.0,0.0392271]
[1609625817264,0.00980802,31702.0,31701.0,1.0]
[1609625817464,0.00979347,31708.0,31701.0,2.18043158]
[1609625817663,0.00979347,31708.0,31704.0,3.8435]
[1609625817863,0.00979347,31708.0,31705.0,1.0]
[1609625818163,0.00979347,31708.0,31706.0,0.00039441]
[1609625818364,0.18688724,31709.0,31706.0,0.00039441]
[1609625819267,0.1771,31709.0,31706.0,1.00039441]
[1609625819464,0.1771,31709.0,31708.0,0.18043158]
[1609625819664,0.1771,31709.0,31708.0,1.18043158]
[1609625820064,0.1771,31709.0,31708.0,1.18082599]
[1609625822068,0.1771,31709.0,31708.0,0.18082599]
[1609625822567,0.1771,31709.0,31708.0,1.18082599]
[1609625824869,0.31038,31709.0,31708.0,1.18082599]
[1609625825268,0.31038,31709.0,31708.0,0.18082599]
[1609625826268,0.31038,31709.0,31708.0,1.18082599]
[1609625827871,0.31038,31709.0,31708.0,0.18082599]
[1609625828271,0.31038,31709.0,31708.0,1.18082599]
[1609625829371,3.94858,31709.0,31708.0,1.18082599]
[1609625829571,3.94858,31709.0,31708.0,0.18082599]
[1609625832573,0.31038,31709.0,31708.0,0.18082599]
[1609625834175,5.41548,31709.0,31708.0,0.18082599]
[1609625835277,6.41548,31709.0,31708.0,0.18082599]
[1609625835677,6.59591158,31709.0,31708.0,0.18082599]
[1609625836779,7.16930263,31709.0,31708.0,0.18082599]
[1609625837178,7.16930263,31709.0,31708.0,0.00039441]
[1609625837380,0.01,31708.0,31679.0,1.0]
[1609625837580,4.2582,31696.0,31691.0,0.18043158]
[1609625837780,4.37617,31696.0,31680.0,0.00039448]
[1609625837980,4.37617,31696.0,31680.0,0.03922491]
[1609625838582,4.37617,31696.0,31675.0,0.03923066]
[1609625839181,0.03,31695.0,31675.0,0.03923066]
[1609625839582,0.18043158,31683.0,31682.0,0.18043158]
[1609625839982,0.34372158,31683.0,31682.0,0.2196619]
[1609625840182,0.34372158,31683.0,31682.0,0.18082612]
[1609625840582,5.19042158,31683.0,31682.0,0.21966172]
[1609625841290,6.19042158,31683.0,31682.0,0.21966172]
[1609625841691,6.19042158,31683.0,31682.0,0.19966172]
[1609625843091,6.19042158,31683.0,31682.0,0.16082612]
[1609625844188,6.19042158,31683.0,31682.0,0.19966463]
[1609625845489,6.19042158,31683.0,31682.0,0.16082612]
[1609625845891,1.34372158,31683.0,31682.0,0.16082612]
[1609625849195,0.34372158,31683.0,31682.0,0.16082612]
[1609625853200,1.34372158,31683.0,31682.0,0.16082612]
[1609625855204,0.34372158,31683.0,31682.0,0.16082612]
[1609625859814,0.16329,31683.0,31682.0,0.16082612]
[1609625860816,0.01378629,31690.0,31682.0,0.16082612]
[1609625861216,0.01378629,31690.0,31683.0,0.00039456]
[1609625861416,1.0,31686.0,31683.0,0.00039456]
[1609625862017,1.13006,31686.0,31683.0,0.00039456]
[1609625863118,1.13006,31686.0,31683.0,0.03923414]
[1609625863318,0.13006,31686.0,31683.0,0.03923414]
[1609625863819,0.13006,31686.0,31683.0,0.18043158]
[1609625864221,0.13006,31686.0,31684.0,0.00039456]
[1609625865923,0.13006,31686.0,31684.0,0.03923778]
[1609625867426,0.18043158,31687.0,31684.0,0.03923778]
[1609625873237,1.0,31685.0,31684.0,0.03923778]
[1609625874236,1.14724,31685.0,31684.0,0.03923778]
[1609625875237,0.14724,31685.0,31684.0,0.03923778]
[1609625875437,1.14724,31685.0,31684.0,0.03923778]
[1609625877240,0.14724,31685.0,31684.0,0.03923778]
[1609625880145,1.0,31686.0,31684.0,0.03923778]
[1609625880346,0.01,31684.0,31683.0,0.18043158]
[1609625880847,0.01,31684.0,31683.0,0.21967367]
[1609625881048,0.16702,31684.0,31683.0,0.21967367]
[1609625882249,0.16702,31684.0,31683.0,0.20967367]
[1609625887456,0.17105017,31684.0,31683.0,0.20967367]
[1609625887654,0.70845017,31684.0,31683.0,0.20967367]
[1609625889059,0.7182413,31684.0,31683.0,0.20967367]
[1609625890361,0.72382668,31684.0,31683.0,0.20967367]
[1609625890560,0.72382668,31684.0,31683.0,0.03924209]
[1609625891061,0.72382668,31684.0,31675.0,0.03924082]
[1609625891362,0.76310159,31684.0,31683.0,0.03924054]
[1609625891563,0.76310159,31684.0,31683.0,5.25764567]
[1609625891761,0.76310159,31684.0,31683.0,6.2188]
[1609625891962,0.76310159,31684.0,31683.0,6.43846715]
[1609625892363,0.74369491,31684.0,31683.0,6.43846715]
[1609625892964,0.16702,31684.0,31683.0,6.51613602]
[1609625893164,0.16702,31684.0,31683.0,6.43846715]
[1609625893365,0.16702,31684.0,31683.0,12.43846715]
[1609625894566,0.16702,31684.0,31683.0,12.51613049]
[1609625895265,0.16702,31684.0,31683.0,6.51613049]
[1609625897669,0.16702,31684.0,31683.0,6.43846715]
[1609625899372,0.01,31684.0,31683.0,6.43846715]
[1609625901274,0.01,31684.0,31683.0,7.43846715]
[1609625901576,0.01,31684.0,31683.0,7.51612721]
[1609625902575,0.01,31684.0,31683.0,7.43846715]
[1609625903278,0.01,31684.0,31683.0,12.43846715]
[1609625903478,0.01,31684.0,31683.0,12.51612542]
[1609625903679,0.01,31684.0,31683.0,12.43846715]
[1609625903879,0.03,31695.0,31683.0,12.43846715]
[1609625904080,0.03,31695.0,31694.0,0.18043158]
[1609625904279,0.03,31695.0,31694.0,1.18043158]
[1609625904482,0.03,31695.0,31694.0,1.21965363]
[1609625905281,0.03,31695.0,31694.0,2.21965363]
[1609625907185,0.03,31695.0,31694.0,2.42752002]
[1609625907386,0.03,31695.0,31694.0,1.42752002]
[1609625907785,0.01380354,31718.0,31694.0,1.42752002]
[1609625907986,0.01380354,31718.0,31717.0,4.4329]
[1609625908185,0.01380354,31718.0,31717.0,5.4329]
[1609625908588,0.84374167,31724.0,31717.0,5.4332945]
[1609625908589,0.00402244,31723.0,31717.0,5.4332945]
[1609625908988,0.00402244,31723.0,31718.0,0.00039448]
[1609625910190,0.00402244,31723.0,31722.0,0.18043158]
[1609625910391,0.00402244,31723.0,31722.0,1.73843158]
[1609625910591,0.00402244,31723.0,31722.0,1.73882598]
[1609625910892,0.00401734,31728.0,31722.0,1.73882598]
[1609625911493,0.00401734,31728.0,31723.0,0.00039436]
[1609625911795,0.00400399,31741.0,31723.0,0.00039436]
[1609625912197,0.00400399,31741.0,31740.0,4.00513158]
[1609625912595,0.00400399,31741.0,31740.0,5.00513158]
[1609625915101,0.00400243,31742.0,31740.0,5.00513158]
[1609625915301,0.00400243,31742.0,31740.0,7.18043158]
[1609625915901,0.00400243,31742.0,31741.0,4.7042]
[1609625916104,0.1771,31748.0,31741.0,5.7042]
[1609625917704,0.01365843,31753.0,31741.0,5.7042]
[1609625918105,0.01365843,31753.0,31752.0,0.18043158]
[1609625918306,0.01365843,31753.0,31752.0,1.18043158]
[1609625918906,0.00967472,31753.0,31752.0,4.99823158]
[1609625919107,0.00397692,31755.0,31752.0,4.99823158]
[1609625920810,0.1771,31761.0,31752.0,4.99823158]
[1609625921211,0.01362192,31762.0,31752.0,4.99823158]
[1609625922211,0.01362192,31762.0,31761.0,0.18043158]
[1609625922413,0.01359641,31769.0,31761.0,0.85033158]
[1609625923213,0.01358307,31772.0,31761.0,0.85033158]
[1609625923413,0.01358307,31772.0,31765.0,1.0]
[1609625923613,0.01358307,31772.0,31765.0,1.7352]
[1609625924116,0.01358307,31772.0,31771.0,0.18043158]
[1609625924515,0.01358307,31772.0,31771.0,4.23113158]
[1609625926116,0.19401465,31772.0,31771.0,4.23113158]
[1609625926617,0.01358307,31772.0,31771.0,4.23113158]
[1609625929320,0.11834,31772.0,31771.0,4.23113158]
[1609625932627,0.11834,31772.0,31771.0,4.23152567]
[1609625934528,0.35753158,31775.0,31771.0,4.23152567]
[1609625934930,0.35753158,31775.0,31772.0,0.00039409]
[1609625935732,0.18043158,31775.0,31772.0,0.00039409]
[1609625938134,0.0937,31781.0,31772.0,0.00039409]
[1609625939337,0.0937,31781.0,31772.0,1.00039409]
[1609625939737,0.0937,31781.0,31773.0,0.000394]
[1609625940337,0.0937,31781.0,31776.0,0.18043158]
[1609625940738,0.0937,31781.0,31776.0,0.1808256]
[1609625945545,0.42541,31777.0,31776.0,0.1808256]
[1609625945745,0.42541,31777.0,31776.0,4.4234256]
[1609625946546,0.42541,31777.0,31776.0,4.46218492]
[1609625948449,0.42541,31777.0,31776.0,4.4234256]
[1609625949651,0.14341,31777.0,31776.0,4.4234256]
[1609625950751,0.0937,31781.0,31776.0,4.4234256]
[1609625950951,0.0937,31781.0,31776.0,0.1808256]
[1609625951152,0.18043158,31787.0,31776.0,0.1808256]
[1609625951351,0.18043158,31787.0,31781.0,1.0]
[1609625951752,0.18043158,31787.0,31782.0,0.00039469]
[1609625952353,0.18043158,31787.0,31784.0,0.18043158]
[1609625952953,0.18043158,31787.0,31784.0,0.18082623]
[1609625953554,0.1771,31788.0,31784.0,0.18082623]
[1609625954756,0.1771,31788.0,31785.0,0.00039462]
[1609625957157,0.1771,31788.0,31785.0,1.00039462]
[1609625957557,0.1771,31788.0,31786.0,0.00039452]
[1609625958160,0.1771,31799.0,31786.0,0.00039452]
[1609625958658,0.1771,31799.0,31795.0,5.1095]
[1609625959559,0.1771,31799.0,31796.0,0.0003945]
[1609625960359,2.2932,31800.0,31798.0,0.18043158]
[1609625960558,2.2932,31800.0,31799.0,1.0]
[1609625960758,2.2932,31800.0,31799.0,1.00039443]
[1609625966463,2.027,31800.0,31799.0,1.00039443]
[1609625967663,2.027,31800.0,31799.0,1.13247443]
[1609625967861,2.027,31800.0,31799.0,1.17118084]
[1609625968262,1.7748,31800.0,31799.0,1.17118084]
[1609625969666,1.7748,31800.0,31799.0,1.13247443]
[1609625970269,1.7748,31800.0,31799.0,1.17117747]
[1609625970769,1.31355714,31800.0,31799.0,1.13247443]
[1609625971569,1.31355714,31800.0,31799.0,1.17117793]
[1609625972873,1.31355714,31800.0,31799.0,9.65017793]
[1609625973071,1.31355714,31800.0,31799.0,1.17117793]
[1609625973873,1.10625714,31800.0,31799.0,1.17117793]
[1609625974274,1.09625714,31800.0,31799.0,1.17117793]
[1609625974979,0.71107561,31800.0,31799.0,9.82417793]
[1609625975176,0.71107561,31800.0,31799.0,1.17117793]
[1609625975977,0.70107561,31800.0,31799.0,1.17117793]
[1609625976879,0.28037561,31800.0,31799.0,1.17117793]
[1609625977178,0.10692,31840.0,31799.0,1.17117793]
[1609625977378,0.10692,31840.0,31826.0,5.1772]
[1609625977579,0.10692,31840.0,31827.0,1.0]
[1609625978280,0.10692,31840.0,31839.0,0.18043158]
[1609625978481,0.1771,31848.0,31839.0,1.82993158]
[1609625978681,0.1771,31848.0,31839.0,1.18043158]
[1609625979881,0.1771,31848.0,31840.0,0.01]
[1609625980287,0.1771,31848.0,31847.0,0.18043158]
[1609625981183,0.1771,31848.0,31847.0,1.18043158]
[1609625982785,0.01350275,31858.0,31847.0,1.18043158]
[1609625982987,0.01350275,31858.0,31847.0,0.18043158]
[1609625983186,0.01350275,31858.0,31857.0,5.27]
[1609625984288,0.01350275,31858.0,31857.0,5.45043158]
[1609625984688,0.0039383,31858.0,31857.0,5.45043158]
[1609625985491,0.1771,31862.0,31857.0,5.44850618]
[1609625986291,0.1771,31862.0,31861.0,0.18043158]
[1609625986589,0.1771,31862.0,31857.0,5.2680746]
[1609625986788,0.29827,31862.0,31840.0,0.01]
[1609625986988,0.29827,31862.0,31849.0,3.603]
[1609625988392,0.29827,31862.0,31855.0,0.18043158]
[1609625989696,0.29827,31862.0,31849.0,3.603]
[1609625990197,0.29827,31862.0,31850.0,0.00039404]
[1609625990397,0.18043158,31851.0,31850.0,0.00039404]
[1609625990598,0.28613158,31851.0,31849.0,3.603]
[1609625991300,0.28613158,31851.0,31850.0,0.00039407]
[1609625991500,0.28613158,31851.0,31849.0,3.603]
[1609625992002,0.28613158,31851.0,31850.0,0.00039405]
[1609625992301,0.28613158,31851.0,31850.0,0.18082563]
[1609625993403,1.28613158,31851.0,31850.0,0.18082563]
[1609625994407,1.28613158,31851.0,31850.0,0.00039405]
[1609625995708,1.28613158,31851.0,31840.0,0.01]
[1609625995908,0.2728,31850.0,31840.0,0.01]
[1609625996108,0.2728,31850.0,31841.0,0.00039407]
[1609625996309,0.2728,31850.0,31844.0,0.18043158]
[1609625996809,0.2728,31850.0,31845.0,0.00039407]
[1609625997409,1.0,31846.0,31845.0,0.00039407]
[1609625997809,1.0,31846.0,31841.0,0.0003941]
[1609625998109,1.0,31846.0,31845.0,0.0003941]
[1609625998310,1.18043158,31846.0,31842.0,0.0003941]
[1609625998711,1.18043158,31846.0,31841.0,0.0003941]
[1609625998912,1.18043158,31846.0,31843.0,0.00039412]
[1609625999112,1.18043158,31846.0,31842.0,0.00039412]
[1609625999312,0.18043158,31846.0,31840.0,0.01]
[1609625999717,0.18043158,31846.0,31841.0,0.00039413]
[1609626000314,0.18043158,31842.0,31841.0,0.00039413]
[1609626000516,0.18043158,31842.0,31837.0,3.5334]
[1609626001014,0.18043158,31842.0,31838.0,0.00039415]
[1609626001616,0.18043158,31842.0,31836.0,0.00039415]
[1609626001816,0.30987158,31842.0,31839.0,0.00039415]
[1609626002019,0.30987158,31842.0,31837.0,0.00039415]
[1609626002320,0.12944,31842.0,31840.0,0.00039415]
[1609626002519,0.12944,31842.0,31835.0,0.18043158]
[1609626002918,0.12944,31842.0,31836.0,0.00039415]
[1609626003920,0.12944,31842.0,31827.0,0.00039415]
[1609626004121,0.12944,31842.0,31837.0,0.00039417]
[1609626004321,0.18043158,31838.0,31837.0,0.00039417]
[1609626004520,0.18043158,31838.0,31833.0,0.18043158]
[1609626004719,0.18043158,31838.0,31837.0,0.00039417]
[1609626004921,0.18043158,31838.0,31834.0,0.00039417]
[1609626005220,0.18043158,31838.0,31837.0,0.00039417]
[1609626005420,0.18043158,31838.0,31835.0,0.00039419]
[1609626005820,0.18043158,31838.0,31834.0,0.00039417]
[1609626006019,0.18043158,31838.0,31836.0,0.00039417]
[1609626006220,0.18043158,31838.0,31835.0,0.00039417]
[1609626006620,0.18043158,31838.0,31827.0,0.00039417]
[1609626006823,0.18043158,31838.0,31836.0,0.00039417]
[1609626007021,0.18043158,31838.0,31828.0,0.00039419]
[1609626007423,6.0,31837.0,31827.0,0.00039417]
[1609626007622,6.0,31837.0,31829.0,0.00039417]
[1609626007824,6.0,31837.0,31828.0,0.00039417]
[1609626008123,6.0,31837.0,31830.0,0.00039417]
[1609626008322,4.9011,31833.0,31829.0,0.00039417]
[1609626008522,0.18043158,31831.0,31829.0,0.00039417]
[1609626008723,0.30528158,31831.0,31821.0,0.18043158]
[1609626008922,0.30528158,31831.0,31830.0,0.00039419]
[1609626009123,0.30528158,31831.0,31822.0,0.00040035]
[1609626010422,0.18043158,31823.0,31817.0,0.00040039]
[1609626011124,0.33915158,31823.0,31817.0,0.00040039]
[1609626011324,1.0,31818.0,31815.0,0.00040039]
[1609626011523,1.0,31818.0,31814.0,0.18043158]
[1609626011825,1.0,31818.0,31816.0,0.0004004]
[1609626012026,1.0,31818.0,31806.0,4.68583158]
[1609626012426,1.0,31818.0,31817.0,0.00040042]
[1609626012628,1.0,31818.0,31807.0,0.180832]
[1609626012827,1.0,31818.0,31817.0,0.00040042]
[1609626013227,1.0,31818.0,31808.0,0.00040042]
[1609626013428,1.0,31818.0,31806.0,4.68583158]
[1609626013429,0.2879,31822.0,31817.0,0.00040042]
[1609626013629,0.2879,31822.0,31809.0,0.00040042]
[1609626013829,0.2879,31822.0,31806.0,4.68583158]
[1609626014230,0.2879,31822.0,31807.0,0.00040043]
[1609626014431,0.18043158,31808.0,31807.0,0.00040043]
[1609626014630,0.29938158,31808.0,31807.0,0.00040043]
[1609626016633,0.29938158,31808.0,31806.0,0.18043158]
[1609626016833,0.29938158,31808.0,31807.0,0.00040045]
[1609626019536,0.28938158,31808.0,31807.0,0.00040045]
[1609626020136,0.28938158,31808.0,31797.0,4.5819]
[1609626020537,0.11895,31808.0,31804.0,0.18043158]
[1609626020738,1.0,31809.0,31804.0,0.18043158]
[1609626020941,1.01370976,31809.0,31797.0,4.5819]
[1609626021141,1.13105976,31809.0,31797.0,4.5819]
[1609626021342,1.0,31799.0,31798.0,0.00040051]
[1609626021740,1.11382,31799.0,31798.0,0.00040051]
[1609626022140,1.11382,31799.0,31790.0,4.2463]
[1609626022339,1.11382,31799.0,31798.0,0.00040053]
[1609626022542,1.29425158,31799.0,31794.0,0.18043158]
[1609626023140,1.29425158,31799.0,31795.0,0.00040057]
[1609626023340,1.0,31796.0,31795.0,0.00040057]
[1609626024242,1.0,31796.0,31791.0,0.00040057]
[1609626024442,1.0,31796.0,31795.0,0.00040057]
[1609626024644,1.0,31796.0,31793.0,0.18043158]
[1609626024845,1.0,31796.0,31795.0,0.00040057]
[1609626025144,1.0,31796.0,31794.0,0.00040057]
[1609626025347,0.11382,31799.0,31794.0,0.00040057]
[1609626025545,4.15612,31799.0,31794.0,0.00040057]
[1609626026547,0.18043158,31795.0,31794.0,0.00040057]
[1609626026747,0.18043158,31795.0,31783.0,0.18043158]
[1609626027149,0.18043158,31795.0,31794.0,0.00040062]
[1609626027348,1.18043158,31795.0,31784.0,0.00040062]
[1609626027547,1.18043158,31795.0,31794.0,0.00040062]
[1609626027949,1.18043158,31795.0,31785.0,0.00040062]
[1609626028148,1.18043158,31795.0,31794.0,0.00040062]
[1609626028351,1.18043158,31795.0,31786.0,0.00040062]
[1609626028548,1.0,31795.0,31790.0,0.18043158]
[1609626028752,1.0,31795.0,31794.0,0.0004006]
[1609626028953,1.0,31795.0,31791.0,0.00040062]
[1609626029153,1.0,31795.0,31794.0,0.00040062]
[1609626029353,4.15612,31799.0,31792.0,0.00040062]
[1609626029653,4.15612,31799.0,31781.0,0.00040062]
[1609626029854,4.15612,31799.0,31793.0,0.00040062]
[1609626030258,4.15612,31799.0,31781.0,0.00040062]
[1609626030459,4.15612,31799.0,31794.0,0.00040062]
[1609626030660,4.15612,31799.0,31785.0,0.18043158]
[1609626030961,4.15612,31799.0,31786.0,0.00040062]
[1609626031362,1.0,31789.0,31786.0,0.00040062]
[1609626031560,1.15364,31789.0,31786.0,0.00040062]
[1609626032461,0.18043158,31787.0,31786.0,0.00040062]
[1609626034061,0.18043158,31787.0,31781.0,0.00040064]
[1609626034462,0.15364,31789.0,31783.0,0.18043158]
[1609626035062,0.15364,31789.0,31784.0,0.00040064]
[1609626035763,0.15364,31789.0,31781.0,0.00040064]
[1609626035963,0.15364,31789.0,31785.0,0.00040064]
[1609626036163,0.15364,31789.0,31782.0,0.00040064]
[1609626036364,5.1708,31787.0,31782.0,0.00040064]
[1609626036564,5.1708,31787.0,31784.0,0.18043158]
[1609626037064,5.1708,31787.0,31785.0,0.00040064]
[1609626038364,5.1708,31787.0,31774.0,1.0]
[1609626038365,5.1708,31787.0,31775.0,0.03913673]
[1609626038566,5.1708,31787.0,31786.0,0.00040066]
[1609626038867,5.1708,31787.0,31780.0,0.00040066]
[1609626039165,5.1708,31787.0,31786.0,0.00040066]
[1609626039366,5.1708,31787.0,31781.0,0.00040068]
[1609626039765,5.1708,31787.0,31786.0,0.00040068]
[1609626039966,5.1708,31787.0,31779.0,0.18043158]
[1609626039967,5.1708,31787.0,31782.0,0.0004007]
[1609626040166,5.1708,31787.0,31786.0,0.0004007]
[1609626040467,5.35123158,31787.0,31783.0,0.0004007]
[1609626040667,5.35123158,31787.0,31786.0,0.00040072]
[1609626040967,5.35123158,31787.0,31780.0,0.00040072]
[1609626041368,5.35123158,31787.0,31786.0,0.00040072]
[1609626041568,5.35123158,31787.0,31781.0,0.00040072]
[1609626041768,5.35123158,31787.0,31786.0,0.0004007]
[1609626041969,5.35123158,31787.0,31782.0,0.0004007]
[1609626042368,5.35123158,31787.0,31772.0,0.03914197]
[1609626042568,5.1708,31787.0,31783.0,0.00040067]
[1609626042767,5.1708,31787.0,31779.0,0.18043158]
[1609626043068,5.1708,31787.0,31780.0,0.00040069]
[1609626043570,5.1708,31787.0,31779.0,0.15043158]
[1609626044371,5.1708,31787.0,31771.0,5.0717]
[1609626044573,5.1708,31787.0,31774.0,0.18043158]
[1609626044972,5.1708,31787.0,31775.0,0.03914216]
[1609626045373,0.01,31779.0,31775.0,0.03914216]
[1609626045574,0.1529,31779.0,31775.0,0.03914216]
[1609626045776,0.1529,31779.0,31772.0,0.03914396]
[1609626045975,0.1529,31779.0,31776.0,0.03914398]
[1609626046175,0.1529,31779.0,31773.0,0.03914371]
[1609626046476,0.1529,31779.0,31772.0,0.03914214]
[1609626046678,0.18043158,31774.0,31772.0,0.03914214]
[1609626046876,0.18043158,31774.0,31771.0,5.0717]
[1609626047078,0.18043158,31774.0,31773.0,0.03914201]
[1609626047277,0.18043158,31774.0,31771.0,5.0617]
[1609626047476,0.18043158,31774.0,31773.0,0.03873918]
[1609626047677,0.18043158,31774.0,31773.0,0.03913987]
[1609626047877,0.18043158,31774.0,31772.0,0.03913981]
[1609626048079,0.18043158,31774.0,31773.0,0.03913885]
[1609626048578,0.18043158,31774.0,31773.0,0.18043158]
[1609626048978,1.0,31777.0,31773.0,0.21956786]
[1609626049379,0.1529,31779.0,31774.0,0.03913514]
[1609626050579,0.1529,31779.0,31778.0,0.18043158]
[1609626050980,0.1529,31779.0,31778.0,0.21956392]
[1609626051781,0.1529,31779.0,31778.0,0.18043158]
[1609626051982,0.1529,31779.0,31778.0,0.219565]
[1609626053383,0.1529,31779.0,31778.0,1.219565]
[1609626054185,0.1529,31779.0,31778.0,5.570665]
[1609626054784,0.1529,31779.0,31778.0,6.570665]
[1609626055186,0.1529,31779.0,31778.0,6.64811851]
[1609626055385,0.1529,31779.0,31778.0,5.64811851]
[1609626059390,0.1529,31779.0,31778.0,6.64811851]
[1609626060799,0.01,31779.0,31778.0,6.64811851]
[1609626061400,0.01,31779.0,31778.0,11.64811851]
[1609626063495,0.01,31779.0,31778.0,5.64811851]
[1609626068302,0.01,31779.0,31778.0,5.570665]
[1609626068700,0.01,31779.0,31778.0,5.6480882]
[1609626069003,0.11382,31799.0,31778.0,5.6480882]
[1609626069201,0.11735,31809.0,31778.0,5.570665]
[1609626069402,0.01373066,31813.0,31779.0,0.039112]
[1609626069902,0.01373066,31813.0,31795.0,5.2717]
[1609626070103,0.00400478,31813.0,31796.0,1.0]
[1609626070304,0.00400478,31813.0,31796.0,1.00040086]
[1609626070503,0.00400478,31813.0,31797.0,0.00040086]
[1609626070704,0.00400478,31813.0,31812.0,0.18043158]
[1609626070907,0.19416605,31814.0,31812.0,0.18043158]
[1609626071105,0.01373447,31814.0,31812.0,0.18043158]
[1609626071708,0.01373447,31814.0,31813.0,1.0]
[1609626072309,0.00400578,31815.0,31813.0,1.0]
[1609626073412,0.00400578,31815.0,31814.0,1.0]